fUSD/lending_fUSD_20250708
["ID","MTS","AMOUNT","RATE_DAILY","PERIOD"]
[370310237,1751946653656,-460.0,0.0003041,7]
[370310238,1751946653667,-525.51637469,0.0003041,7]
[370310239,1751946653678,-520.0,0.0003041,7]
[370310240,1751946653688,-300.0,0.0003041,2]
[370310241,1751946653703,-460.0,0.0003041,7]
[370310242,1751946653713,-460.0,0.0003041,7]
[370310243,1751946653724,-371.76953986,0.0003041,7]
[370310244,1751946653735,-719.41,0.0003041,7]
[370310245,1751946653745,-562.67,0.0003041,7]
[370310246,1751946653756,-1036.14,0.0003041,7]
[370310247,1751946653766,-151.810331,0.0003041,7]
[370310248,1751946653776,-460.0,0.0003041,7]
[370310249,1751946653788,-151.0,0.0003041,7]
[370310250,1751946653799,-538.27,0.0003041,7]
[370310251,1751946653810,-460.0,0.0003041,7]
[370310252,1751946653819,-460.0,0.0003041,7]
[370310253,1751946653830,-460.0,0.0003041,7]
[370310254,1751946653840,-460.0,0.0003041,7]
[370310255,1751946653851,-460.0,0.0003041,7]
[370310256,1751946653861,-460.0,0.0003041,7]
[370310257,1751946653872,-460.0,0.0003041,7]
[370310258,1751946653884,-460.0,0.0003041,7]
[370310259,1751946653894,-460.0,0.0003041,7]
[370310260,1751946653904,-460.0,0.0003041,7]
[370310261,1751946653914,-460.0,0.0003041,7]
[370310262,1751946653923,-460.0,0.0003041,7]
[370310263,1751946653933,-460.0,0.0003041,7]
[370310264,1751946653943,-602.62,0.0003041,7]
[370310265,1751946653953,-520.0,0.0003041,7]
[370310266,1751946653962,-494.26,0.0003041,7]
[370310267,1751946653972,-1164.56,0.0003041,7]
[370310268,1751946653982,-521.84771516,0.0003041,7]
[370310269,1751946653992,-520.0,0.0003041,7]
[370310270,1751946654001,-460.0,0.0003041,7]
[370310271,1751946654011,-460.0,0.0003041,7]
[370310272,1751946654020,-2400.38,0.0003041,7]
[370310273,1751946654030,-1567.07,0.0003041,7]
[370310274,1751946654040,-460.0,0.0003041,7]
[370310275,1751946654050,-460.0,0.0003041,7]
[370310276,1751946654060,-526.67012668,0.0003041,7]
[370310277,1751946654070,-460.0,0.0003041,7]
[370310278,1751946654079,-460.0,0.0003041,7]
[370310279,1751946654089,-460.0,0.0003041,7]
[370310280,1751946654099,-156.30457,0.0003041,7]
[370310281,1751946654109,-507.7,0.0003041,7]
[370310282,1751946654119,-151.0,0.0003041,7]
[370310283,1751946654128,-460.0,0.0003041,7]
[370310284,1751946654138,-460.0,0.0003041,7]
[370310285,1751946654148,-460.0,0.0003041,7]
[370310286,1751946654158,-976.68,0.0003041,7]
[370310287,1751946654167,-460.0,0.0003041,7]
[370310288,1751946654177,-151.0,0.0003041,7]
[370310289,1751946654187,-460.0,0.0003041,7]
[370310290,1751946654197,-460.0,0.0003041,7]
[370310291,1751946654206,-520.8969136,0.0003041,7]
[370310292,1751946654216,-460.0,0.0003041,7]
[370310293,1751946654226,-460.0,0.0003041,7]
[370310294,1751946654236,-460.0,0.0003041,7]
[370310295,1751946654245,-524.12,0.0003041,7]
[370310296,1751946654255,-460.0,0.0003041,7]
[370310297,1751946654264,-333.72662215,0.0003041,7]
[370310298,1751946654274,-681.48,0.0003041,7]
[370310299,1751946654284,-754.04,0.0003041,7]
[370310300,1751946654294,-460.0,0.0003041,7]
[370310301,1751946654305,-460.0,0.0003041,7]
[370310302,1751946654315,-460.0,0.0003041,7]
[370310303,1751946654326,-460.0,0.0003041,7]
[370310304,1751946654336,-460.0,0.0003041,7]
[370310305,1751946654346,-460.0,0.0003041,7]
[370310306,1751946654357,-460.0,0.0003041,7]
[370310307,1751946654369,-460.0,0.0003041,7]
[370310308,1751946654379,-460.0,0.0003041,7]
[370310309,1751946654388,-460.0,0.0003041,7]
[370310310,1751946654399,-151.0,0.0003041,7]
[370310311,1751946654409,-151.0,0.0003041,7]
[370310312,1751946654418,-460.0,0.0003041,7]
[370310313,1751946654428,-151.0,0.0003041,7]
[370310314,1751946654438,-460.0,0.0003041,7]
[370310315,1751946654447,-460.0,0.0003041,7]
[370310316,1751946654457,-525.60672165,0.0003041,7]
[370310317,1751946654467,-460.0,0.0003041,7]
[370310318,1751946654476,-460.0,0.0003041,7]
[370310319,1751946654486,-460.0,0.0003041,7]
[370310320,1751946654495,-619.0,0.0003041,7]
[370310321,1751946654505,-460.0,0.0003041,7]
[370310322,1751946654515,-460.0,0.0003041,7]
[370310323,1751946654524,-660.14,0.0003041,7]
[370310324,1751946654534,-477.5,0.0003041,7]
[370310325,1751946654543,-676.32,0.0003041,7]
[370310326,1751946654552,-460.0,0.0003041,7]
[370310327,1751946654563,-460.0,0.0003041,7]
[370310328,1751946654572,-460.0,0.0003041,7]
[370310329,1751946654582,-1367.1,0.0003041,7]
[370310330,1751946654592,-460.0,0.0003041,7]
[370310331,1751946654602,-460.0,0.0003041,7]
[370310332,1751946654612,-460.0,0.0003041,7]
[370310333,1751946654623,-460.0,0.0003041,7]
[370310334,1751946654635,-740.36,0.0003041,7]
[370310335,1751946654644,-460.0,0.0003041,7]
[370310336,1751946654657,-460.0,0.0003041,7]
[370310337,1751946654670,-583.71669502,0.0003041,7]
[370310338,1751946654680,-460.0,0.0003041,7]
[370310339,1751946654692,-907.14,0.0003041,7]
[370310340,1751946654702,-460.0,0.0003041,7]
[370310341,1751946654712,-425.0,0.0003041,7]
[370310342,1751946654722,-460.0,0.0003041,7]
[370310343,1751946654732,-645.35,0.0003041,7]
[370310344,1751946654743,-590.05,0.0003041,7]
[370310345,1751946654754,-460.0,0.0003041,7]
[370310346,1751946654765,-460.0,0.0003041,7]
[370310347,1751946654777,-522.84,0.0003041,7]
[370310348,1751946654787,-460.0,0.0003041,7]
[370310349,1751946654797,-460.0,0.0003041,7]
[370310350,1751946654806,-460.0,0.0003041,7]
[370310351,1751946654816,-151.0,0.0003041,7]
[370310352,1751946654826,-151.0,0.0003041,7]
[370310353,1751946654836,-460.0,0.0003041,7]
[370310354,1751946654846,-460.0,0.0003041,7]
[370310355,1751946654857,-460.0,0.0003041,7]
[370310356,1751946654867,-1470.72,0.0003041,7]
[370310357,1751946654877,-1389.52,0.0003041,7]
[370310358,1751946654887,-767.3,0.0003041,7]
[370310359,1751946654897,-460.0,0.0003041,7]
[370310360,1751946654907,-460.0,0.0003041,7]
[370310361,1751946654917,-633.74,0.0003041,7]
[370310362,1751946654927,-957.4,0.0003041,7]
[370310363,1751946654938,-460.0,0.0003041,7]
[370310364,1751946654948,-151.0,0.0003041,7]
[370310365,1751946654959,-1626.56,0.0003041,7]
[370310366,1751946654968,-151.0,0.0003041,7]
[370310367,1751946654979,-151.752585,0.0003041,7]
[370310368,1751946654989,-460.0,0.0003041,7]
[370310369,1751946654999,-460.0,0.0003041,7]
[370310370,1751946655010,-460.0,0.0003041,7]
[370310371,1751946655020,-607.44,0.0003041,7]
[370310372,1751946655030,-330.64148472,0.0003041,7]
[370310373,1751946655040,-613.04,0.0003041,7]
[370310374,1751946655050,-460.0,0.0003041,7]
[370310375,1751946655060,-460.0,0.0003041,7]
[370310376,1751946655070,-460.0,0.0003041,7]
[370310377,1751946655080,-460.0,0.0003041,7]
[370310378,1751946655090,-480.07528889,0.0003041,7]
[370310379,1751946655100,-1442.42,0.0003041,7]
[370310380,1751946655110,-584.96525053,0.0003041,7]
[370310381,1751946655120,-460.0,0.0003041,7]
[370310382,1751946655130,-151.0,0.0003041,7]
[370310383,1751946655140,-526.39,0.0003041,7]
[370310384,1751946655149,-460.0,0.0003041,7]
[370310385,1751946655159,-460.0,0.0003041,7]
[370310386,1751946655169,-460.0,0.0003041,7]
[370310387,1751946655179,-460.0,0.0003041,7]
[370310388,1751946655189,-460.0,0.0003041,7]
[370310389,1751946655200,-460.0,0.0003041,7]
[370310390,1751946655210,-460.0,0.0003041,7]
[370310391,1751946655220,-460.0,0.0003041,7]
[370310392,1751946655230,-2381.39,0.0003041,7]
[370310393,1751946655396,-2727.77,0.0003041,7]
[370310394,1751946655425,-834.04,0.0003041,7]
[370310395,1751946655436,-460.0,0.0003041,7]
[370310396,1751946655446,-573.52,0.0003041,7]
[370310397,1751946655455,-460.0,0.0003041,7]
[370310398,1751946655465,-460.0,0.0003041,7]
[370310399,1751946655475,-460.0,0.0003041,7]
[370310400,1751946655487,-460.0,0.0003041,7]
[370310401,1751946655496,-775.51,0.0003041,7]
[370310402,1751946655506,-668.83,0.0003041,7]
[370310403,1751946655516,-295.522774,0.0003041,7]
[370310404,1751946655528,-704.63,0.0003041,7]
[370310405,1751946655538,-329.537982,0.0003041,7]
[370310406,1751946655547,-151.0,0.0003041,7]
[370310407,1751946655558,-329.537982,0.0003041,7]
[370310408,1751946655568,-460.0,0.0003041,7]
[370310409,1751946655577,-151.0,0.0003041,7]
[370310410,1751946655590,-151.0,0.0003041,7]
[370310411,1751946655600,-329.537982,0.0003041,7]
[370310412,1751946655610,-788.72,0.0003041,7]
[370310413,1751946655621,-329.537982,0.0003041,7]
[370310414,1751946655630,-460.0,0.0003041,7]
[370310415,1751946655642,-460.0,0.0003041,7]
[370310416,1751946655655,-295.522774,0.0003041,7]
[370310417,1751946655666,-198.15,0.0003041,7]
[370310418,1751946655676,-614.68,0.0003041,7]
[370310419,1751946655686,-572.72,0.0003041,7]
[370310420,1751946655695,-661.2,0.0003041,7]
[370310421,1751946655707,-460.0,0.0003041,7]
[370310422,1751946655717,-998.25,0.0003041,7]
[370310423,1751946655727,-151.0,0.0003041,7]
[370310424,1751946655736,-460.0,0.0003041,7]
[370310425,1751946655747,-152.088575,0.0003041,7]
[370310426,1751946655757,-648.13,0.0003041,7]
[370310427,1751946655767,-662.21,0.0003041,7]
[370310428,1751946655776,-540.81,0.0003041,7]
[370310429,1751946655786,-460.0,0.0003041,7]
[370310430,1751946655796,-460.0,0.0003041,7]
[370310431,1751946655806,-151.0,0.0003041,7]
[370310432,1751946655815,-151.0,0.0003041,7]
[370310433,1751946655825,-735.42732767,0.0003044,2]
[370310434,1751946655835,-500.0,0.00030441,7]
[370310435,1751946655844,-500.0,0.00030473,5]
[370310436,1751946655854,-500.0,0.00030473,5]
[370310437,1751946655863,-500.54775291,0.00030473,5]
[370310438,1751946655873,-500.0,0.00030473,5]
[370310439,1751946655883,-500.0,0.00030473,5]
[370310440,1751946655892,-500.0,0.00030473,5]
[370310441,1751946655905,-501.30759825,0.00030473,5]
[370310442,1751946655914,-500.0,0.00030473,5]
[370310443,1751946655924,-500.0,0.00030473,5]
[370310444,1751946655934,-4168.21393009,0.00030496,2]
[370310445,1751946655944,-735.42732767,0.00030541,2]
[370310446,1751946655953,-431.0,0.00030565,2]
[370310447,1751946655963,-735.42732767,0.00030642,2]
[370310448,1751946655973,-291.33496576,0.00030659,23]
[370310450,1751946996261,192.01,0.00029119,120]
[370310455,1751947378566,159.22,0.00013699,2]
[370310463,1751947832152,-250.0,0.00015,2]
[370310464,1751947832162,-269.53368872,0.00016612,2]
[370310465,1751947832172,-169.1,0.00016712,2]
[370310466,1751947832183,-300.0,0.00017,2]
[370310467,1751947832193,-175.0,0.000181,2]
[370310468,1751947832202,-172.0,0.0001859,2]
[370310469,1751947832214,-168.0,0.0001907,2]
[370310470,1751947832224,-165.0,0.0001956,2]
[370310471,1751947832233,-465.49427452,0.00019698,2]
[370310472,1751947832243,-161.0,0.0002004,2]
[370310473,1751947832252,-151.0,0.00020457,2]
[370310474,1751947832261,-158.0,0.0002053,2]
[370310475,1751947832271,-154.0,0.0002101,2]
[370310476,1751947832280,-151.0,0.000215,2]
[370310477,1751947832290,-150.0,0.0002199,2]
[370310478,1751947832299,-150.0,0.0002247,2]
[370310479,1751947832309,-150.0,0.0002296,2]
[370310480,1751947832318,-150.0,0.0002344,2]
[370310481,1751947832328,-150.0,0.0002393,2]
[370310482,1751947832337,-150.0,0.0002441,2]
[370310483,1751947832347,-150.0,0.000249,2]
[370310484,1751947832356,-150.0,0.0002539,2]
[370310485,1751947832366,-150.0,0.0002587,2]
[370310486,1751947832375,-150.0,0.0002636,2]
[370310487,1751947832385,-313.57,0.00026835,2]
[370310488,1751947832395,-150.0,0.0002684,2]
[370310489,1751947832404,-1095.58,0.00027237,2]
[370310490,1751947832413,-150.0,0.0002733,2]
[370310491,1751947832423,-2904.3,0.00027376,2]
[370310492,1751947832433,-200.0,0.00027418,7]
[370310493,1751947832442,-666.0,0.00027531,2]
[370310494,1751947832451,-159.36,0.00027593,2]
[370310495,1751947832461,-200.0,0.00027665,2]
[370310496,1751947832470,-249.77,0.00027675,2]
[370310497,1751947832479,-150.0,0.0002781,2]
[370310498,1751947832489,-165.1,0.00027842,2]
[370310499,1751947832498,-600.0,0.00027896,2]
[370310500,1751947832508,-300.0,0.00027896,2]
[370310501,1751947832517,-1200.0,0.00027896,2]
[370310502,1751947832527,-1200.0,0.00027897,2]
[370310503,1751947832536,-23900.0,0.00027898,2]
[370310504,1751947832545,-4144.18208552,0.000279,18]
[370310505,1751947832555,-165.1,0.00027934,2]
[370310506,1751947832565,-165.1,0.00028027,2]
[370310507,1751947832574,-1545.11255681,0.00028041,2]
[370310508,1751947832586,-2813.38254034,0.00028041,2]
[370310509,1751947832597,-440.67,0.00028041,2]
[370310511,1751947832620,-267.87293308,0.00028041,2]
[370310513,1751947832630,-167.54,0.00028057,2]
[370310515,1751947832639,-165.1,0.0002812,2]
[370310517,1751947832648,-150.0,0.000283,2]
[370310519,1751947832657,-504.0,0.00028338,2]
[370310521,1751947832667,-4144.18208538,0.00028521,19]
[370310523,1751947832676,-150.0,0.0002879,2]
[370310524,1751947832685,-290.10900409,0.00028813,2]
[370310525,1751947832695,-226.8,0.00028975,2]
[370310526,1751947832705,-787.0,0.0002898,2]
[370310527,1751947832716,-151.52,0.00029,2]
[370310528,1751947832725,-926.18,0.00029041,2]
[370310529,1751947832734,-812.2,0.00029041,2]
[370310530,1751947832746,-151.0,0.00029125,2]
[370310531,1751947832756,-151.0,0.00029125,2]
[370310532,1751947832764,-151.0,0.00029125,2]
[370310533,1751947832774,-151.0,0.00029125,2]
[370310534,1751947832783,-151.0,0.00029125,2]
[370310535,1751947832792,-151.0,0.00029125,2]
[370310536,1751947832801,-151.0,0.00029125,2]
[370310537,1751947832811,-151.0,0.00029125,2]
[370310538,1751947832820,-151.0,0.00029125,2]
[370310539,1751947832829,-151.0,0.00029125,2]
[370310540,1751947832838,-151.0,0.00029125,2]
[370310541,1751947832846,-151.0,0.00029125,2]
[370310542,1751947832856,-151.0,0.00029125,2]
[370310543,1751947832865,-151.0,0.00029125,2]
[370310544,1751947832874,-4144.18208538,0.00029141,20]
[370310545,1751947832883,-173.85,0.00029143,2]
[370310547,1751947832893,-1000.0,0.00029143,2]
[370310549,1751947832902,-300.0,0.00029146,2]
[370310550,1751947832911,-500.0,0.00029146,2]
[370310552,1751947832921,-500.0,0.00029146,2]
[370310554,1751947832930,-153.45910122,0.00029146,2]
[370310556,1751947832939,-500.0,0.00029146,2]
[370310558,1751947832949,-500.0,0.00029146,2]
[370310560,1751947832958,-207.4,0.00029146,2]
[370310562,1751947832967,-169.97546526,0.00029146,2]
[370310564,1751947832977,-281.33523382,0.00029146,2]
[370310566,1751947832986,-1116.88,0.00029242,2]
[370310568,1751947832995,-302.61,0.00029263,2]
[370310570,1751947833005,-150.0,0.0002927,2]
[370310572,1751947833014,-2199.74,0.00029319,2]
[370310574,1751947833023,-558.68,0.00029357,2]
[370310576,1751947833032,-787.0,0.00029411,7]
[370310578,1751947833042,-210.34477682,0.00029431,2]
[370310580,1751947833051,-250.0,0.00029474,2]
[370310582,1751947833060,-504.0,0.00029657,4]
[370310584,1751947833070,-150.0,0.0002976,2]
[370310586,1751947833079,-4144.18208538,0.00029762,21]
[370310588,1751947833089,-789.0,0.00029802,2]
[370310590,1751947833099,-865.77923541,0.00029866,2]
[370310592,1751947833110,-300.0,0.000299,10]
[370310594,1751947833120,-659.00871782,0.00029936,3]
[370310596,1751947833130,-787.0,0.00029968,2]
[370310598,1751947833144,-1040.0,0.0003,3]
[370310599,1751947833153,-2007.63,0.0003,7]
[370310601,1751947833163,-6218.56947069,0.0003003,2]
[370310603,1751947833172,-1122.25100748,0.0003003,2]
[370310605,1751947833181,-659.00871782,0.00030036,3]
[370310607,1751947833191,-453.3325,0.00030036,3]
[370310609,1751947833200,-966.24946083,0.00030036,2]
[370310612,1751947833221,-3144.64143917,0.00030036,2]
[370310614,1751947833231,-5000.0,0.00030036,2]
[370310616,1751947833241,-6247.73811358,0.00030036,2]
[370310618,1751947833250,-167.14065964,0.00030036,15]
[370310620,1751947833260,-249.45951907,0.00030059,2]
[370310622,1751947833272,-600.0,0.00030059,2]
[370310624,1751947833283,-272.79148834,0.00030059,2]
[370310625,1751947833292,-108.23688536,0.00030088,2]
[370310627,1751947833308,-374.08836388,0.00030088,2]
[370310629,1751947833319,-639.92575817,0.00030088,2]
[370310631,1751947833330,-95.28182201,0.000301,2]
[370310656,1751947833574,-904.71817799,0.000301,2]
[370310658,1751947833584,-1943.0,0.000301,2]
[370310660,1751947833594,-787.0,0.00030112,2]
[370310662,1751947833604,-1122.25100741,0.00030117,2]
[370310664,1751947833613,-172.71,0.0003012,2]
[370310666,1751947833622,-500.0,0.00030125,2]
[370310668,1751947833632,-500.0,0.00030125,2]
[370310670,1751947833641,-242.18567779,0.00030125,2]
[370310672,1751947833651,-500.0,0.00030125,2]
[370310674,1751947833660,-500.0,0.00030125,2]
[370310676,1751947833670,-500.0,0.00030125,2]
[370310678,1751947833679,-500.0,0.00030125,2]
[370310680,1751947833689,-500.0,0.00030125,2]
[370310682,1751947833699,-500.0,0.00030125,2]
[370310684,1751947833709,-500.0,0.00030125,2]
[370310686,1751947833718,-500.0,0.00030125,2]
[370310687,1751947833728,-500.0,0.00030125,2]
[370310689,1751947833737,-422.6365616,0.00030125,2]
[370310760,1751947838072,-77.3634384,0.00030125,2]
[370310761,1751947838082,-500.0,0.00030125,2]
[370310762,1751947838091,-198.08587529,0.00030125,2]
[370310763,1751947838103,-301.91412471,0.00030125,2]
[370310764,1751947838113,-133.76685992,0.00030125,2]
[370310765,1751947838124,-366.23314008,0.00030125,2]
[370310766,1751947838133,-500.0,0.00030125,2]
[370310767,1751947838146,-500.0,0.00030125,2]
[370310768,1751947838155,-252.83774604,0.00030125,2]
[370310769,1751947838164,-500.0,0.00030125,2]
[370310770,1751947838174,-500.0,0.00030125,2]
[370310771,1751947838185,-48644.77750002,0.00030126,2]
[370310772,1751947838332,-1211.62092196,0.00030126,2]
[370310773,1751947838343,-1965.30427423,0.00030126,2]
[370310774,1751947838355,-1765.79648198,0.00030126,2]
[370310980,1751947840589,-27822.99181561,0.00030126,2]
[370310982,1751947840599,-172.71,0.00030126,2]
[370310984,1751947840609,-172.71,0.00030126,2]
[370310986,1751947840618,-172.71,0.00030126,2]
[370310988,1751947840628,-3131.17273053,0.0003013,2]
[370310990,1751947840637,-1143.0,0.00030132,2]
[370310992,1751947840646,-5000.0,0.00030135,2]
[370310994,1751947840656,-155.596,0.00030135,2]
[370310996,1751947840665,-281.11902368,0.00030135,2]
[370310998,1751947840675,-460.0,0.00030136,7]
[370311000,1751947840684,-460.0,0.00030136,7]
[370311002,1751947840694,-460.0,0.00030136,7]
[370311004,1751947840703,-568.76929269,0.00030136,7]
[370311006,1751947840712,-1631.3,0.00030136,5]
[370311008,1751947840722,-460.0,0.00030136,7]
[370311010,1751947840731,-460.0,0.00030136,7]
[370311012,1751947840741,-545.80509528,0.00030136,7]
[370311014,1751947840750,-460.0,0.00030136,7]
[370311016,1751947840759,-460.0,0.00030136,7]
[370311018,1751947840768,-460.0,0.00030136,7]
[370311020,1751947840777,-460.0,0.00030136,7]
[370311022,1751947840787,-217.60644728,0.00030136,7]
[370311024,1751947840796,-460.0,0.00030136,7]
[370311026,1751947840805,-433.15,0.00030136,7]
[370311028,1751947840814,-277.11177514,0.00030136,7]
[370311030,1751947840823,-460.0,0.00030136,7]
[370311032,1751947840832,-460.0,0.00030136,7]
[370311034,1751947840842,-460.0,0.00030136,7]
[370311036,1751947840850,-190.32,0.00030136,7]
[370311038,1751947840860,-460.0,0.00030136,7]
[370311040,1751947840869,-460.0,0.00030136,7]
[370311042,1751947840879,-468.73993621,0.00030136,7]
[370311044,1751947840887,-460.0,0.00030136,7]
[370311046,1751947840897,-520.0,0.00030136,7]
[370311048,1751947840906,-460.0,0.00030136,7]
[370311050,1751947840916,-522.99568069,0.00030136,7]
[370311052,1751947840926,-460.0,0.00030136,7]
[370311054,1751947840936,-460.0,0.00030136,7]
[370311056,1751947840945,-460.0,0.00030136,7]
[370311058,1751947840955,-460.0,0.00030136,7]
[370311060,1751947840964,-460.0,0.00030136,7]
[370311062,1751947840973,-460.0,0.00030136,7]
[370311064,1751947840982,-460.0,0.00030136,7]
[370311066,1751947840991,-460.0,0.00030136,7]
[370311068,1751947841001,-474.42143726,0.00030136,7]
[370311070,1751947841010,-474.5205885,0.00030136,7]
[370311072,1751947841020,-460.0,0.00030136,7]
[370311074,1751947841029,-460.0,0.00030136,7]
[370311076,1751947841039,-460.0,0.00030136,7]
[370311078,1751947841048,-460.0,0.00030136,7]
[370311080,1751947841057,-300.0,0.00030136,7]
[370311082,1751947841066,-460.0,0.00030136,7]
[370311084,1751947841075,-460.0,0.00030136,7]
[370311086,1751947841085,-460.0,0.00030136,7]
[370311088,1751947841094,-505.92,0.00030136,7]
[370311090,1751947841103,-460.0,0.00030136,7]
[370311092,1751947841113,-460.0,0.00030136,7]
[370311094,1751947841122,-460.0,0.00030136,7]
[370311096,1751947841131,-460.0,0.00030136,7]
[370311098,1751947841144,-460.0,0.00030136,7]
[370311100,1751947841153,-460.0,0.00030136,7]
[370311102,1751947841163,-460.0,0.00030136,7]
[370311104,1751947841173,-460.0,0.00030136,7]
[370311106,1751947841182,-460.0,0.00030136,7]
[370311108,1751947841191,-460.0,0.00030136,7]
[370311110,1751947841200,-288.9,0.00030136,7]
[370311112,1751947841210,-460.0,0.00030136,7]
[370311114,1751947841219,-598.17,0.00030136,7]
[370311116,1751947841229,-460.0,0.00030136,7]
[370311118,1751947841238,-460.0,0.00030136,7]
[370311120,1751947841247,-460.0,0.00030136,7]
[370311121,1751947841256,-460.0,0.00030136,7]
[370311124,1751947841266,-460.0,0.00030136,7]
[370311126,1751947841276,-460.0,0.00030136,7]
[370311127,1751947841285,-460.0,0.00030136,7]
[370311130,1751947841295,-460.0,0.00030136,7]
[370311132,1751947841308,-460.0,0.00030136,7]
[370311134,1751947841318,-460.0,0.00030136,7]
[370311136,1751947841328,-460.0,0.00030136,7]
[370311138,1751947841339,-460.0,0.00030136,7]
[370311140,1751947841349,-714.2,0.00030136,7]
[370311142,1751947841358,-460.0,0.00030136,7]
[370311144,1751947841368,-500.0,0.00030136,7]
[370311146,1751947841378,-460.0,0.00030136,7]
[370311148,1751947841387,-460.0,0.00030136,7]
[370311150,1751947841397,-460.0,0.00030136,7]
[370311152,1751947841407,-460.0,0.00030136,7]
[370311154,1751947841417,-460.0,0.00030136,7]
[370311156,1751947841426,-460.0,0.00030136,7]
[370311158,1751947841435,-460.0,0.00030136,7]
[370311160,1751947841444,-460.0,0.00030136,7]
[370311162,1751947841453,-460.0,0.00030136,7]
[370311164,1751947841462,-460.0,0.00030136,7]
[370311166,1751947841474,-544.16,0.00030136,7]
[370311168,1751947841483,-460.0,0.00030136,7]
[370311170,1751947841493,-460.0,0.00030136,7]
[370311172,1751947841502,-460.0,0.00030136,7]
[370311174,1751947841512,-460.0,0.00030136,7]
[370311176,1751947841521,-460.0,0.00030136,7]
[370311178,1751947841531,-460.0,0.00030136,7]
[370311180,1751947841540,-460.0,0.00030136,7]
[370311182,1751947841549,-460.0,0.00030136,7]
[370311184,1751947841559,-460.0,0.00030136,7]
[370311186,1751947841568,-460.0,0.00030136,7]
[370311188,1751947841578,-460.0,0.00030136,7]
[370311190,1751947841587,-460.0,0.00030136,7]
[370311192,1751947841597,-490.0,0.00030136,7]
[370311194,1751947841607,-678.26,0.00030136,7]
[370311195,1751947841617,-460.0,0.00030136,7]
[370311197,1751947841626,-460.0,0.00030136,7]
[370311199,1751947841635,-490.0,0.00030136,7]
[370311201,1751947841644,-345.4,0.00030136,7]
[370311203,1751947841654,-460.0,0.00030136,7]
[370311205,1751947841663,-460.0,0.00030136,7]
[370311207,1751947841673,-460.0,0.00030136,7]
[370311209,1751947841683,-474.54314885,0.00030136,7]
[370311211,1751947841693,-460.0,0.00030136,7]
[370311213,1751947841702,-460.0,0.00030136,7]
[370311215,1751947841711,-460.0,0.00030136,7]
[370311217,1751947841721,-665.23,0.00030136,7]
[370311219,1751947841730,-460.0,0.00030136,7]
[370311221,1751947841739,-460.0,0.00030136,7]
[370311223,1751947841749,-460.0,0.00030136,7]
[370311225,1751947841758,-460.0,0.00030136,7]
[370311227,1751947841767,-383.75320808,0.00030136,7]
[370311229,1751947841777,-460.0,0.00030136,7]
[370311231,1751947841787,-460.0,0.00030136,7]
[370311233,1751947841796,-460.0,0.00030136,7]
[370311235,1751947841805,-460.0,0.00030136,7]
[370311237,1751947841814,-460.0,0.00030136,7]
[370311239,1751947841823,-474.18157876,0.00030136,7]
[370311241,1751947841833,-460.0,0.00030136,7]
[370311243,1751947841842,-594.39,0.00030136,7]